Cogmind - Beta 13 @@@ ROGUE MODE // 2024.04.16 @ 19:30:17 Player: xSquared Result: Destroyed self with Heavy Rocket Launcher Performance ------------- Evolutions (4) 2000 Regions Visited (11) 2200 Robots Destroyed (42) 210 Value Destroyed (1486) 1486 Prototype IDs (29) 580 Alien Tech Used (0) 0 Bonus (534) 534 TOTAL SCORE: 7010 Bonus ------- High Alert Combat Kills 13 Follower Combat Kills 221 Aligned with FarCom 300 Cogmind --------- Core Integrity 0/850 Matter 239/300 Energy 100/100 System Corruption 5% Temperature Cool (0) Movement Core (200) Ox3 Location -6/Factory Parts ------- > --- POWER (2) -------- (None) > --- PROPULSION (4) --- VTOL Module VTOL Module VTOL Module > --- UTILITY (7) ------ Machine Analyzer Improved Signal Interpreter Target Analyzer Core Analyzer Hacking Suite > --- WEAPON (2) ------- Autogun Heavy Rocket Launcher > --- INVENTORY (5) ---- Medium Storage Unit Melee Analysis Suite Microactuators Heavy Laser Peak State ------------ > --- POWER ------------ Enhanced Nuclear Core Micro Nuclear Core > --- PROPULSION ------- Carbon-fiber Leg Improved Carbon-fiber Leg Improved Titanium Leg > --- UTILITY ---------- Machine Analyzer Improved Signal Interpreter Improved Terrain Scanner Melee Analysis Suite Target Analyzer Core Analyzer > --- WEAPON ----------- Missile Launcher Longsword +1 > --- INVENTORY -------- Melee Analysis Suite Microactuators Plasma Cannon Grenade Launcher [Rating: 51] Favorites ----------- Power Light Ion Engine Engine Light Ion Engine Power Core Micro Nuclear Core Propulsion Flight Unit Treads Light Treads Leg Carbon-fiber Leg Hover Unit Gravmag System Flight Unit Flight Unit Utility Target Analyzer Device Seismic Detector Processor Target Analyzer Hackware Hacking Suite Protection Propulsion Shielding Weapon Longsword +1 Energy Gun Heavy Laser Energy Cannon Plasma Cannon Ballistic Gun Light Assault Rifle Launcher Missile Launcher Impact Weapon Great Maul Slashing Weapon Longsword +1 Build | -11 -10 -10 -9 -9 -9 -8 -8 -7 -7 -7 -6 ------- Run | Yrd Mat Min Mat Min Exi Min Mat Fac Was Fac Fac Slots Evolved 8 | . . . 2 . . . 2 2 . . 2 Power 1 | . . . . . . . . 1 . . . Propulsion 2 | . . . 1 . . . . . . . 1 Utility 5 | . . . 1 . . . 2 1 . . 1 Weapon . | . . . . . . . . . . . . Parts Attached 80 | 5 6 3 1 2 1 . 7 7 . 25 23 Power 13 | 1 1 . . 1 . . . 2 . 4 4 Engine 5 | 1 1 . . 1 . . . 1 . 1 . Core 8 | . . . . . . . . 1 . 3 4 Reactor . | . . . . . . . . . . . . Propulsion 29 | 2 2 1 . . . . 3 4 . 8 9 Treads 2 | 2 . . . . . . . . . . . Leg 8 | . . . . . . . . 4 . 4 . Wheel . | . . . . . . . . . . . . Hover 3 | . . . . . . . . . . 3 . Flight 16 | . 2 1 . . . . 3 . . 1 9 Utility 19 | . 3 . 1 . . . 4 1 . 6 4 Device 9 | . 2 . 1 . . . 1 . . 3 2 Storage . | . . . . . . . . . . . . Processor 8 | . . . . . . . 3 1 . 3 1 Hackware 1 | . . . . . . . . . . . 1 Protection 1 | . 1 . . . . . . . . . . Artifact . | . . . . . . . . . . . . Weapon 19 | 2 . 2 . 1 1 . . . . 7 6 Energy Gun 1 | . . . . . . . . . . . 1 Energy Cannon 1 | . . . . . . . . . . 1 . Ballistic Gun 7 | 2 . 2 . 1 . . . . . . 2 Ballistic Cannon . | . . . . . . . . . . . . Launcher 5 | . . . . . . . . . . 3 2 Special Weapon . | . . . . . . . . . . . . Impact Weapon 1 | . . . . . . . . . . 1 . Slashing Weapon 4 | . . . . . 1 . . . . 2 1 Piercing Weapon . | . . . . . . . . . . . . Special Melee Weapon . | . . . . . . . . . . . . Unidentified Prototypes . | . . . . . . . . . . . . Parts Lost 33 | . . 1 1 . . . . 4 . 14 13 Power 7 | . . . 1 . . . . 1 . 3 2 Propulsion 13 | . . 1 . . . . . 3 . 4 5 Utility 8 | . . . . . . . . . . 5 3 Weapon 5 | . . . . . . . . . . 2 3 Highest Loss Streak 10 | . . 1 1 . . . . 2 . 7 10 To Critical Strikes 2 | . . . . . . . . . . 2 . Average Slot Usage (%) 85 | . 82 99 77 77 71 66 86 82 92 90 84 Engine 6 | . 14 14 11 11 11 11 9 7 7 2 . Core 4 | . . . . . . . . 2 7 10 7 Treads 1 | . 15 . . . . . . . . . . Leg 7 | . . . . . . . . 9 23 17 . Hover 1 | . . . . . . . . . . 2 6 Flight 10 | . 12 27 22 22 22 22 25 8 . . 13 Device 10 | . 7 14 11 11 11 11 17 15 15 9 6 Processor 20 | . . . . . . . 16 23 23 33 35 Protection 4 | . 3 14 11 11 11 11 9 7 7 . . Ballistic Gun 6 | . 28 28 22 22 11 . . . . . . Slashing Weapon 5 | . . . . . 5 11 9 7 7 5 10 Naked Turns . | . . . . . . . . . . . . Heaviest Build 27 | 8 9 8 7 7 8 8 10 21 21 27 18 Greatest Support 53 | 40 40 8 8 8 8 8 13 35 35 53 36 Greatest Overweight (x) 5 | . 2 1 . . . . . 5 . 4 3 Average Overweight (x) . | . . . . . . . . . . . . Largest Inventory Capacity 5 | 5 5 5 5 5 5 5 5 5 5 5 5 Average Capacity 5 | 5 5 5 5 5 5 5 5 5 5 5 5 Most Carried 5 | 2 5 5 5 5 5 5 5 5 4 5 5 Average Carried 4 | 1 3 4 4 4 4 5 4 4 4 4 4 Final Capacity 5 | 5 5 5 5 5 5 5 5 5 5 5 5 Final Carried 5 | 2 5 4 5 5 5 5 5 4 4 5 4 Class Distribution -------------------- 50% | Mutant 20% | Scavenger-Mutant 10% | Gladiator 8% | Scavenger-Sprinter 8% | Sprinter Dominant Class ---------------- Mutant | -10/Materials Mutant | -10/Mines Scavenger-Mutant | -9/Materials Scavenger-Mutant | -9/Mines Mutant | -9/Exiles Mutant | -8/Mines Sprinter | -8/Materials Scavenger-Mutant | -7/Factory Scavenger-Mutant | -7/Waste Mutant | -7/Factory Scavenger-Sprinter | -6/Factory Resources | -11 -10 -10 -9 -9 -9 -8 -8 -7 -7 -7 -6 ----------- Run | Yrd Mat Min Mat Min Exi Min Mat Fac Was Fac Fac Matter Collected 1147 | 107 203 126 . . . . 62 129 . 287 233 Remotely . | . . . . . . . . . . . . Salvage Created 1379 | . 245 25 50 . . . 76 314 . 458 211 Parts 95 | . 19 5 3 . . . 12 15 . 30 11 Haulers Intercepted . | . . . . . . . . . . . . Recyclers Shooed . | . . . . . . . . . . . . Parts Field Recycled . | . . . . . . . . . . . . Retrieved Matter . | . . . . . . . . . . . . Parts Self-Destructed . | . . . . . . . . . . . . Prevented . | . . . . . . . . . . . . Kills | -11 -10 -10 -9 -9 -9 -8 -8 -7 -7 -7 -6 ------- Run | Yrd Mat Min Mat Min Exi Min Mat Fac Was Fac Fac Combat Hostiles Destroyed 37 | . 8 2 1 . . . 3 5 . 13 5 Melee 19 | . . . . . . . 3 5 . 8 3 Guns 12 | . 8 2 1 . . . . . . . 1 AOE 5 | . . . . . . . . . . 4 1 Classes Destroyed 9 | . 2 . 1 . . . 2 1 . 2 1 Worker 1 | . . . . . . . . 1 . . . Tunneler 1 | . . . . . . . . . . . 1 Operator 2 | . . . . . . . 1 . . . 1 Watcher 1 | . . . . . . . 1 . . . . Swarmer 14 | . 3 2 . . . . 3 . . 3 3 Grunt 12 | . 5 . . . . . . 3 . 3 1 Duelist 1 | . . . . . . . . . . 1 . Sentry 5 | . . . 1 . . . . 2 . 1 1 Programmer 5 | . . . . . . . . . . 5 . Best Kill Streak 4 | . 3 2 1 . . . 3 3 . 4 3 Combat Bots Only 4 | . 3 2 1 . . . 3 3 . 4 2 Max Kills in Single Turn 2 | . 2 1 1 . . . 1 1 . 1 1 Gunslinging 1 | . 1 . . . . . . . . . . Exploded 1 | . . . . . . . . . . 1 1 Melee 1 | . . . . . . . 1 1 . 1 1 Uniques/NPCs Destroyed . | . . . . . . . . . . . . Combat | -11 -10 -10 -9 -9 -9 -8 -8 -7 -7 -7 -6 -------- Run | Yrd Mat Min Mat Min Exi Min Mat Fac Was Fac Fac Hostile Shots Fired 445 | . 41 18 35 . . . 13 58 . 139 141 Missed 174 | . 15 10 20 . . . 5 23 . 40 61 Damage Taken 3966 | . 280 120 168 . . . 62 371 . 1650 1315 Core 1600 | . 27 18 61 . . . 22 199 . 411 862 Absorbed by Shields . | . . . . . . . . . . . . Redirected to Shielding 50 | . . 4 6 . . . 2 21 . 17 . Core Remaining (%) 74 | 100 . 82 . . . 84 96 . . 12 . Volleys Fired 50 | . 24 6 5 . 1 . . . . 7 7 Largest 2 | . 2 2 2 . 2 . . . . 1 2 Hottest 92 | . 40 40 40 . 40 . . . . 39 92 Shots Fired 89 | . 48 12 10 . 2 . . . . 7 10 Gun 80 | . 48 12 10 . 2 . . . . . 8 Cannon . | . . . . . . . . . . . . Launcher 9 | . . . . . . . . . . 7 2 Special . | . . . . . . . . . . . . Kinetic 76 | . 48 12 10 . 2 . . . . . 4 Thermal 4 | . . . . . . . . . . . 4 Explosive 9 | . . . . . . . . . . 7 2 Electromagnetic . | . . . . . . . . . . . . Robot Hit Streak 9 | . 9 3 7 . . . . . . 1 3 Robot Miss Streak 3 | . 3 2 2 . . . . . . 2 1 Penetration Max . | . . . . . . . . . . . . Secondary Targets 3 | . 3 . . . . . . . . . . Max Gunslinging Chain 1 | . 1 . . . . . . . . . . Shots Hit Robots 105 | . 31 7 6 . . . 5 13 . 27 16 Core Hits 66 | . 15 3 4 . . . 5 6 . 19 14 Critical Kills . | . . . . . . . . . . . . Critical Parts Destroyed 2 | . . . . . . . . . . 2 . Critical Strikes 7 | . . . . . . . . 2 . 5 . Smash 2 | . . . . . . . . . . 2 . Sever 5 | . . . . . . . . 2 . 3 . Melee Attacks 95 | . . . . . . . 14 15 . 43 23 Impact 16 | . . . . . . . . . . 16 . Slashing 79 | . . . . . . . 14 15 . 27 23 Piercing . | . . . . . . . . . . . . Sneak Attacks 4 | . . . . . . . . 2 . 1 1 Combat Hostiles 1 | . . . . . . . . 1 . . . Follow-up Attacks 2 | . . . . . . . . . . 1 1 Damage Inflicted 3887 | . 369 70 44 . . . 255 663 . 1705 781 Guns 534 | . 369 70 44 . . . . . . . 51 Cannons . | . . . . . . . . . . . . Explosions 865 | . . . . . . . . . . 608 257 Melee 2483 | . . . . . . . 255 663 . 1097 468 Ramming 5 | . . . . . . . . . . . 5 Kinetic 496 | . 369 70 44 . . . . . . . 13 Thermal 246 | . . . . . . . . . . 208 38 Explosive 657 | . . . . . . . . . . 400 257 Electromagnetic . | . . . . . . . . . . . . Impact 327 | . . . . . . . . . . 327 . Slashing 2156 | . . . . . . . 255 663 . 770 468 Piercing . | . . . . . . . . . . . . Highest Corruption 5 | . . . . . . . . . . 5 5 Average Corruption 3 | . . . . . . . . . . 2 5 Corruption Purged . | . . . . . . . . . . . . Corruption Blocked . | . . . . . . . . . . . . Effects 14 | . . . . . . . . . . 11 3 Message Errors 5 | . . . . . . . . . . 4 1 Matter Fused 4 | . . . . . . . . . . 4 . Heat Flow Errors 1 | . . . . . . . . . . 1 . Parts Rejected 1 | . . . . . . . . . . 1 . Data Loss (minor) 1 | . . . . . . . . . . 1 . Data Loss (major) 1 | . . . . . . . . . . . 1 Weapon Failures 1 | . . . . . . . . . . . 1 Overload Shots . | . . . . . . . . . . . . Overflow Damage 456 | . . . . . . . . 60 . 300 96 Projectiles . | . . . . . . . . . . . . Explosions 101 | . . . . . . . . . . 101 . Melee 355 | . . . . . . . . 60 . 199 96 Knockbacks 4 | . . . . . . . . . . 4 . Impact 4 | . . . . . . . . . . 4 . Kinetic . | . . . . . . . . . . . . Secondary . | . . . . . . . . . . . . Self-Inflicted Damage 238 | . . . . . . . . . . 181 57 Shots 6 | . . . . . . . . . . 5 1 Rammed 1 | . . . . . . . . . . . 1 Targets Rammed 1 | . . . . . . . . . . . 1 Kicked . | . . . . . . . . . . . . Crushed . | . . . . . . . . . . . . Highest Temperature 210 | . 15 10 12 . 3 . . . . 210 36 Average Temperature 23 | . 7 4 5 . 2 . . . . 84 16 Received Heat Transfer 678 | . 120 27 81 . . . . 135 . 141 174 Effects 1 | . . . . . . . . . . 1 . Interference 1 | . . . . . . . . . . 1 . Siege Activations . | . . . . . . . . . . . . Robots Corrupted . | . . . . . . . . . . . . Combat Hostiles . | . . . . . . . . . . . . Parts Fried 2 | . . . . . . . . . . 2 . Impact Corruptions 7 | . . . . . . . . . . 7 . Robots Melted . | . . . . . . . . . . . . Combat Hostiles . | . . . . . . . . . . . . Parts Melted . | . . . . . . . . . . . . Heat Transferred 174 | . . . . . . . . . . 100 74 Parts Sabotaged . | . . . . . . . . . . . . Parts Stolen . | . . . . . . . . . . . . Parts Stripped . | . . . . . . . . . . . . Power Chain Reactions . | . . . . . . . . . . . . Alert | -11 -10 -10 -9 -9 -9 -8 -8 -7 -7 -7 -6 ------- Run | Yrd Mat Min Mat Min Exi Min Mat Fac Was Fac Fac Peak Influence 548 | . 293 112 136 93 . . 139 189 . 209 548 Initial 102 | . . 42 43 48 . . . 63 . . 102 Average 107 | . 98 74 82 76 . . 68 101 . 70 311 Maximum Alert Level 2 | . 1 . . . . . . . . 1 2 Low Security (%) 87 | 100 82 100 100 100 . 100 100 100 100 99 27 Level 1 9 | . 17 . . . . . . . . . 51 Level 2 3 | . . . . . . . . . . . 21 Level 3 . | . . . . . . . . . . . . Level 4 . | . . . . . . . . . . . . Level 5 . | . . . . . . . . . . . . High Security . | . . . . . . . . . . . . Max Security . | . . . . . . . . . . . . Squads Dispatched 20 | . 4 . 3 . . . 2 . . 4 7 Investigation 10 | . 2 . 2 . . . 1 . . 1 4 Extermination 3 | . . . . . . . . . . 3 . Reinforcement 6 | . 2 . 1 . . . 1 . . . 2 Assault . | . . . . . . . . . . . . Garrison 1 | . . . . . . . . . . . 1 Intercept . | . . . . . . . . . . . . Searches Triggered . | . . . . . . . . . . . . Construction Impeded . | . . . . . . . . . . . . Haulers Reinforced . | . . . . . . . . . . . . Active Scanning Responses . | . . . . . . . . . . . . Cargo Convoy Interrupts . | . . . . . . . . . . . . Stealth | -11 -10 -10 -9 -9 -9 -8 -8 -7 -7 -7 -6 --------- Run | Yrd Mat Min Mat Min Exi Min Mat Fac Was Fac Fac Distress Signals 5 | . . . 2 . . . . 1 . 1 1 Communications Jammed . | . . . . . . . . . . . . Distress Signals . | . . . . . . . . . . . . Times Spotted 115 | . 16 14 19 3 . . 7 5 . 19 32 Peak Tracking Total 18 | . 4 13 18 3 . . 4 2 . 4 13 Tactical Retreats 9 | . . 1 . 2 . . . . . 1 5 Traps | -11 -10 -10 -9 -9 -9 -8 -8 -7 -7 -7 -6 ------- Run | Yrd Mat Min Mat Min Exi Min Mat Fac Was Fac Fac Traps Triggered 5 | . . . . . . . . 2 . 2 1 Indirectly . | . . . . . . . . . . . . Trap Hack Attempts . | . . . . . . . . . . . . Triggered . | . . . . . . . . . . . . Disarmed . | . . . . . . . . . . . . Reprogrammed . | . . . . . . . . . . . . Reused . | . . . . . . . . . . . . Traps Extracted . | . . . . . . . . . . . . Installed . | . . . . . . . . . . . . Triggered . | . . . . . . . . . . . . Most Traps Carried 2 | . . . . 2 2 . . . . . . Machines | -11 -10 -10 -9 -9 -9 -8 -8 -7 -7 -7 -6 ---------- Run | Yrd Mat Min Mat Min Exi Min Mat Fac Was Fac Fac Machines Disabled 5 | . . . . . . . . . . 3 2 Max in Single Turn 2 | . . . . . . . . . . 2 1 Garrison Access 1 | . . . . . . . . 1 . . . Machines Repaired . | . . . . . . . . . . . . Machines Dismantled . | . . . . . . . . . . . . Machines Sabotaged . | . . . . . . . . . . . . Overloaded Fab Kills . | . . . . . . . . . . . . Hacking | -11 -10 -10 -9 -9 -9 -8 -8 -7 -7 -7 -6 --------- Run | Yrd Mat Min Mat Min Exi Min Mat Fac Was Fac Fac Machines Accessed 29 | . 4 . 2 . 3 . 6 1 . 6 7 Terminals 22 | . 3 . 2 . . . 6 . . 5 6 Fabricators 2 | . . . . . . . . . . 1 1 Repair Stations . | . . . . . . . . . . . . Recycling Units 1 | . 1 . . . . . . . . . . Scanalyzers . | . . . . . . . . . . . . Garrison Access 1 | . . . . . . . . 1 . . . Total Hacks 89 | . 14 . 7 . 20 . 14 1 . 15 18 Successful 55 | . 7 . 3 . 20 . 7 1 . 7 10 Failed 34 | . 7 . 4 . . . 7 . . 8 8 Catastrophic 11 | . 1 . 1 . . . 5 . . 2 2 Database Lockouts . | . . . . . . . . . . . . Manual 28 | . 6 . 3 . 1 . 9 . . 9 . Terminals 63 | . 12 . 7 . . . 14 . . 13 17 Fabricators 3 | . . . . . . . . . . 2 1 Repair Stations . | . . . . . . . . . . . . Recycling Units 2 | . 2 . . . . . . . . . . Scanalyzers . | . . . . . . . . . . . . Garrison Access 1 | . . . . . . . . 1 . . . Terminal Hacks 43 | . 3 . 1 . 20 . 5 . . 4 10 Record 19 | . . . . . 19 . . . . . . Robot Schematic 1 | . . . . . . . . . . . 1 Prototype ID Bank 3 | . 1 . . . . . 1 . . . 1 Open DSF 2 | . . . . . . . . . . 1 1 Level Access Points 2 | . . . . . . . . . . 1 1 Terminal Index 1 | . . . . . . . . . . 1 . Alert Level 4 | . . . . . . . 1 . . 1 2 Unreport Threat 2 | . . . . . . . . . . . 2 Locate Traps 2 | . . . . . . . 1 . . . 1 Dispatch Records 1 | . 1 . . . . . . . . . . Recall Reinforcements 1 | . . . . . . . . . . . 1 Hauler Manifests 1 | . . . . . . . 1 . . . . Zone Layout 3 | . 1 . 1 . . . 1 . . . . Derelict Proto ID Bank 1 | . . . . . 1 . . . . . . Fabricator Hacks . | . . . . . . . . . . . . Repair Station Hacks . | . . . . . . . . . . . . Recycling Unit Hacks 1 | . 1 . . . . . . . . . . Report Inventory 1 | . 1 . . . . . . . . . . Scanalyzer . | . . . . . . . . . . . . Garrison Access Hacks 1 | . . . . . . . . 1 . . . Seal Access 1 | . . . . . . . . 1 . . . Unauthorized Hacks 10 | . 3 . 2 . . . 2 . . 3 . Terminals 10 | . 3 . 2 . . . 2 . . 3 . Track 2 | . 1 . . . . . . . . 1 . Assimilate 2 | . 1 . . . . . . . . 1 . Botnet 6 | . 1 . 2 . . . 2 . . 1 . Fabricators . | . . . . . . . . . . . . Repair Stations . | . . . . . . . . . . . . Recycling Units . | . . . . . . . . . . . . Scanalyzers . | . . . . . . . . . . . . Garrison Access . | . . . . . . . . . . . . Data Cores Recovered 1 | . . . . . . . 1 . . . . Used . | . . . . . . . . . . . . Hacking Detections 23 | . 4 . 2 . . . 6 . . 5 6 Full Trace Events 10 | . 2 . 2 . . . 1 . . 1 4 Feedback Events . | . . . . . . . . . . . . Feedback Blocked . | . . . . . . . . . . . . Robot Schematics Acquired 1 | . . . . . . . . . . . 1 Robots Built . | . . . . . . . . . . . . Authchips . | . . . . . . . . . . . . Time . | . . . . . . . . . . . . Total Robot Build Rating . | . . . . . . . . . . . . Part Schematics Acquired . | . . . . . . . . . . . . Parts Built . | . . . . . . . . . . . . Authchips . | . . . . . . . . . . . . Time . | . . . . . . . . . . . . Total Part Build Rating . | . . . . . . . . . . . . Parts Repaired . | . . . . . . . . . . . . Time . | . . . . . . . . . . . . Parts Recycled . | . . . . . . . . . . . . Recycled Matter . | . . . . . . . . . . . . Retrieved Matter . | . . . . . . . . . . . . Retrieved Components . | . . . . . . . . . . . . Parts Scanalyzed . | . . . . . . . . . . . . Part Schematics Acquired . | . . . . . . . . . . . . Parts Damaged . | . . . . . . . . . . . . Bothacking | -11 -10 -10 -9 -9 -9 -8 -8 -7 -7 -7 -6 ------------ Run | Yrd Mat Min Mat Min Exi Min Mat Fac Was Fac Fac Used RIF Installer . | . . . . . . . . . . . . Robots Hacked . | . . . . . . . . . . . . Non-combat . | . . . . . . . . . . . . Combat . | . . . . . . . . . . . . Robot Hacks Applied . | . . . . . . . . . . . . Relay Couplers Released . | . . . . . . . . . . . . Fabnet Peak Effective % . | . . . . . . . . . . . . Robots Rewired . | . . . . . . . . . . . . Allies Hacked . | . . . . . . . . . . . . Hacks Repelled . | . . . . . . . . . . . . Allies | -11 -10 -10 -9 -9 -9 -8 -8 -7 -7 -7 -6 -------- Run | Yrd Mat Min Mat Min Exi Min Mat Fac Was Fac Fac Total Allies 4 | . . . . . . . . . 1 . 3 Largest Group 3 | . . . . . . . . . 1 1 3 Highest-Rated Group 93 | . . . . . . . . . 31 31 93 Highest-Rated Ally 31 | . . . . . . . . . 31 31 31 Total Orders . | . . . . . . . . . . . . Ally Attacks 48 | . . . . . . . . . . 4 44 Total Damage 739 | . . . . . . . . . . 85 654 Kills 8 | . . . . . . . . . . . 8 Allies Corrupted . | . . . . . . . . . . . . Allies Melted . | . . . . . . . . . . . . Intel | -11 -10 -10 -9 -9 -9 -8 -8 -7 -7 -7 -6 ------- Run | Yrd Mat Min Mat Min Exi Min Mat Fac Was Fac Fac Robot Analysis Total . | . . . . . . . . . . . . Derelict Logs Recovered 3 | . . 1 . 2 . . . . . . . Drone Launches . | . . . . . . . . . . . . Drone Recoveries . | . . . . . . . . . . . . Exploration | -11 -10 -10 -9 -9 -9 -8 -8 -7 -7 -7 -6 ------------- Run | Yrd Mat Min Mat Min Exi Min Mat Fac Was Fac Fac Turns Passed 3637 | 89 455 161 128 87 117 85 320 504 83 1117 491 Spaces Moved 4833 | 55 505 333 270 220 282 214 750 364 63 888 889 Core 23 | 7 . . . . . . . 2 . 5 9 Treads 179 | 48 131 . . . . . . . . . . Legs 804 | . . . . . . . . 165 63 576 . Wheels . | . . . . . . . . . . . . Hover 474 | . . . . . . . . . . 295 179 Flight 3353 | . 374 333 270 220 282 214 750 197 . 12 701 Fastest Speed 26 | 50 37 37 37 37 37 37 32 32 120 52 26 Average Speed 59 | 146 69 37 37 37 37 37 32 112 120 102 38 Slowest Speed 300 | 160 220 120 37 37 37 37 37 300 120 275 200 Overloaded Moves . | . . . . . . . . . . . . Propulsion Burnouts . | . . . . . . . . . . . . Robots Hopped 32 | . 6 4 15 3 . 1 1 . . . 2 Cave-ins Triggered . | . . . . . . . . . . . . Exploration Rate (%) 41 | 4 50 65 27 57 63 54 49 12 66 27 25 Regions Visited 11 Branch Regions 4 Pre-discovered Areas 2 | . . 1 . 1 . . . . . . . Known Exits Taken 2 | . . . . . . . 1 . . 1 . Unknown Exits Taken 7 | 1 1 1 1 1 1 1 . . . . . Scrap Searched . | . . . . . . . . . . . . Spaces Dug 35 | . . . . . . . 7 2 . 20 6 Terrain Destroyed 86 | . . . . . . . 7 2 . 66 11 Melee 24 | . . . . . . . 7 2 . 9 6 Projectile 1 | . . . . . . . . . . . 1 AOE 61 | . . . . . . . . . . 57 4 Terrain Rammed . | . . . . . . . . . . . . Walls Destroyed . | . . . . . . . . . . . . Machines Disabled . | . . . . . . . . . . . . Actions | -11 -10 -10 -9 -9 -9 -8 -8 -7 -7 -7 -6 --------- Run | Yrd Mat Min Mat Min Exi Min Mat Fac Was Fac Fac Total 5327 | 62 560 354 274 221 293 218 810 441 70 1028 996 Wait 222 | . 20 15 12 . 4 6 37 34 8 46 40 Move 4765 | 54 492 324 245 213 281 211 747 364 62 887 885 Hop 26 | . 6 4 9 3 . 1 1 . . . 2 Pick Up 32 | 3 6 . 1 2 2 . 1 2 . 9 6 Fast Attach 56 | 4 5 2 1 . 1 . 6 4 . 18 15 Attach 16 | 1 . 1 . 1 . . 1 3 . 6 3 Detach 2 | . . . . . . . . . . 2 . Swap 8 | . 1 . . 1 . . . . . 1 5 Drop 41 | . 6 2 1 1 4 . 3 1 . 12 11 Fire 50 | . 24 6 5 . 1 . . . . 7 7 Melee 90 | . . . . . . . 14 15 . 40 21 Ram 1 | . . . . . . . . . . . 1 Kick . | . . . . . . . . . . . . Crush . | . . . . . . . . . . . . Escape Stasis 18 | . . . . . . . . 18 . . . Rewire . | . . . . . . . . . . . . Trap . | . . . . . . . . . . . . Miscellaneous . | . . . . . . . . . . . . Route ------- -11/Scrapyard -10/Materials (discovered 3 exits: *Mat x2 / [*Min]) -10/Mines -9/Materials -9/Mines (discovered 2 exits: *Mat / *Exi) -9/Exiles (discovered 2 exits: [*Min x2]) -8/Mines -8/Materials (discovered 3 exits: *Fac x2 / *Sto) -7/Factory -7/Waste -7/Factory (discovered 4 exits: *Fac x4) -6/Factory (discovered 4 exits: Fac x4) History --------- Turn | Location | Event 34 | -11/Scrapyard | Discovered new exit (range 15) 90 | -11/Scrapyard | Entered Materials 318 | -10/Materials | Build established: Mutant 369 | -10/Materials | Discovered new exit (range 9) 417 | -10/Materials | Discovered new exit (range 16) 474 | -10/Materials | Discovered new exit (range 5) 545 | -10/Materials | Entered Mines 565 | -10/Mines | Joined a pair of Derelicts in attacking an 0b10 outpost 602 | -10/Mines | Learned location of Storage (-8) 666 | -10/Mines | Discovered new exit (range 12) 683 | -10/Mines | Assembled infested the area 688 | -10/Mines | Assisted by a Guerilla fighting off Assembled 693 | -10/Mines | Learned Materials stockpile data 706 | -10/Mines | Entered Materials 706 | -9/Materials | Evolved 2 slots: Propulsion x1, Utility x1 831 | -9/Materials | Discovered new exit (range 7) 834 | -9/Materials | Entered Mines 845 | -9/Mines | Learned 8 Materials zone layouts 846 | -9/Mines | Met a Derelict bent on vengeance 846 | -9/Mines | Received a Rocket Launcher from a helpful Derelict 865 | -9/Mines | Found a hidden stash of uninstalled traps 880 | -9/Mines | Discovered new exit (range 14) 918 | -9/Mines | Deemed a non-threat by the Exiles lab entrance 918 | -9/Mines | Discovered new exit (range 5) 921 | -9/Mines | Entered Exiles 931 | -9/Exiles | Discovered new exit (range 15) 943 | -9/Exiles | Met 8R-AWN 947 | -9/Exiles | Build established: Scavenger-Mutant 949 | -9/Exiles | Met EX-HEX 960 | -9/Exiles | Met EX-BIN 966 | -9/Exiles | Aligned with FarCom system 967 | -9/Exiles | Given EX-Vault access code 976 | -9/Exiles | Opened EX-Vault 982 | -9/Exiles | Found Deploy-a-Sentry 983 | -9/Exiles | Found Deploy-a-Sentry 986 | -9/Exiles | Found Longsword +1 1001 | -9/Exiles | Warned to stay clear of 0b10 Research branches 1012 | -9/Exiles | Met EX-DEC 1034 | -9/Exiles | Discovered new exit (range 10) 1038 | -9/Exiles | Stole two prototypes: Longsword +1, Deploy-a-Sentry 1038 | -9/Exiles | Entered Mines 1120 | -8/Mines | Discovered new exit (range 8) 1123 | -8/Mines | Entered Materials 1123 | -8/Materials | Evolved 2 slots: Utility x2 1124 | -8/Materials | Identified exit to Storage 1124 | -8/Materials | Identified exit to Factory 1281 | -8/Materials | Discovered exit to Factory (range 14) 1443 | -8/Materials | Entered Factory 1443 | -7/Factory | Evolved 2 slots: Power x1, Utility x1 1445 | -7/Factory | FarCom data flow suspended 1947 | -7/Factory | Sucked down chute 1947 | -7/Factory | Entered Waste 1947 | -7/Waste | The area was eerily silent 1948 | -7/Waste | Met a frightened Derelict 2004 | -7/Waste | Discovered new exit (range 15) 2026 | -7/Waste | Identified exit to Factory 2030 | -7/Waste | Entered Factory 2030 | -7/Factory | Accompanied by 1 ally 2417 | -7/Factory | Build established: Mutant 2805 | -7/Factory | Core integrity fell below 50% 2948 | -7/Factory | Lost 7 parts (1p3n1u2w) 2979 | -7/Factory | Core integrity fell below 20% 3072 | -7/Factory | Identified exit to Factory 3147 | -7/Factory | Entered another Factory area 3147 | -6/Factory | Evolved 2 slots: Propulsion x1, Utility x1 3232 | -6/Factory | Allied Derelicts emerged from ambush trap array 3489 | -6/Factory | Spotted B-75 Beast 3522 | -6/Factory | Identified exit to Factory 3543 | -6/Factory | Core integrity fell below 50% 3547 | -6/Factory | Core integrity fell below 20% 3573 | -6/Factory | Garrison activated, responded to threat 3586 | -6/Factory | Lost 10 parts (2p2n3u3w) 3638 | -6/Factory | Destroyed self with Heavy Rocket Launcher Last Messages --------------- >>Traps(Locate) Found 6 traps in 1 array: 6x Ambush Trap Map updated. >>Prototypes Downloading prototype IDs... Hvy. Gatling Laser Fusion Reactor >>Schematic(R-06 Scavenger) Downloading schematic... R-06 Scavenger Tier: 1 Schematic downloaded. 03597_ ALERT: Suspicious activity at Terminal F012. Dispatching Investigation squad. 03601_ ALERT: Hostiles spotted, dispatching reinforcements to Terminal F015. 03611_ VTOL Module destroyed. 03638_ System corrupted: Autogun jammed. 03638_ Construction Platform disabled. Map ----- +----------------------------------------------------+ | ???/ T #????# ????????????????? | | ???# ! #????# """"""????????????? | | ???# ### T######????? """"""????????????? | | ???# ! #?############## """"""????????????? | | ???## ^##????# ### """"""????????????? | | ##### ^####### #??????????????????????? | | # ^ #????""""""?""?????????? | | "" + ^ #????""""""?""?????????? | | "" # #????""""""??G?????????? | | "" # ^^ #????""""""?""?????????? | | "" # #???????????""?????????? | | #########+### #??????????????????????? | | ## ## #??????????????????????? | | ## ######+##/####????????????????????? | | " ## # #????????????????????? | | T ## #"" = #????????????????????? | | " ## #" #????????????????????? | | ## #"F """" #????????????????????? | | ###### #"" """" #????????????????????? | | ?????# # """" #????????????????????? | | ?????# # """"Y#????????????????????? | | ?????# # ] """" #????????????????????? | | ?????# # """" #????????????????????? | | ?????# # """ #????????????????????? | | ?????# # ! #????????????????????? | | ?????# # @ #????"""?"""?????????? | | ?????# ##############????"""?"""?????????? | | ?????# ! #?????????????????"""?"""?????????? | | ?????###########?????????????????????????????????? | | ?????????????????????????????????????????????????? | | ?????????????????????????????????????????????????? | | ?????????????????????????????????????????????????? | | ?????????????????????????????????????????????????? | | ?????????????????????????????????????????????????? | | ?????????????????????????????????????????????????? | | ?????????????????????????????????????????????????? | | ?????????????????????????????????????????????????? | | ?????????????????????????????????????????????????? | | ?????????????????????????????????????????????????? | | ?????????????????????????????????????????????????? | | ?????????????????????????????????????????????????? | | ?????????????????????????????????????????????????? | | ?????????????????????????????????????????????????? | | ?????????????????????????????????????????????????? | | ?????????????????????????????????????????????????? | | ?????????????????????????????????????????????????? | | ?????????????????????????????????????????????????? | | ????